bitfinex/quotes_SOLUSD_20240612
["timestamp","ask_amount","ask_price","bid_price","bid_amount"]
[1718232698159,5.0,155.48,155.42,7.96]
[1718232701945,5.0,155.48,155.43,7.96]
[1718232707043,5.0,155.48,155.39,0.51]
[1718232707252,5.0,155.48,155.4,0.17]
[1718232707461,5.0,155.48,155.41,0.17]
[1718232707662,7.96,155.47,155.4,0.34]
[1718232707945,7.96,155.47,155.41,7.96]
[1718232709955,12.96,155.48,155.42,7.96]
[1718232710669,29.5828,155.47,155.34,16.3785]
[1718232710975,7.96,155.45,155.39,7.96]
[1718232711152,7.96,155.45,155.34,16.3785]
[1718232711342,7.96,155.45,155.39,7.96]
[1718232711765,21.6228,155.47,155.39,7.96]
[1718232711963,7.96,155.45,155.4,7.96]
[1718232712665,20.0,155.46,155.34,21.60411872]
[1718232712666,7.96,155.43,155.34,16.3785]
[1718232712963,7.96,155.43,155.38,7.96]
[1718232715171,7.96,155.44,155.38,7.96]
[1718232716854,7.96,155.44,155.39,7.96]
[1718232719057,21.6228,155.47,155.4,7.96]
[1718232719263,27.96,155.46,155.41,7.96]
[1718232719466,27.96,155.46,155.4,7.96]
[1718232719666,7.96,155.45,155.4,7.96]
[1718232719977,27.96,155.46,155.4,7.96]
[1718232720472,27.96,155.46,155.38,0.34]
[1718232721481,20.0,155.46,155.41,7.96]
[1718232723168,5.0,155.48,155.41,7.96]
[1718232723360,5.0,155.48,155.42,7.96]
[1718232723560,12.96,155.48,155.42,7.96]
[1718232727580,7.96,155.47,155.4,0.17]
[1718232727783,7.96,155.47,155.42,7.96]
[1718232732367,5.0,155.48,155.39,16.3904]
[1718232732681,7.96,155.45,155.39,24.3504]
[1718232732873,7.96,155.46,155.4,7.96]
[1718232734685,5.0,155.48,155.41,7.96]
[1718232735074,7.96,155.46,155.41,7.96]
[1718232736568,7.96,155.47,155.41,7.96]
[1718232737371,5.0,155.48,155.41,7.96]
[1718232737695,7.96,155.47,155.41,7.96]
[1718232741579,12.96,155.48,155.42,7.96]
[1718232743800,5.0,155.48,155.42,7.96]
[1718232743988,12.96,155.48,155.43,7.96]
[1718232744189,5.0,155.48,155.43,7.96]
[1718232744384,12.96,155.48,155.43,7.96]
[1718232746409,5.0,155.48,155.43,7.96]
[1718232746584,12.96,155.48,155.43,7.96]
[1718232746784,5.0,155.48,155.43,7.96]
[1718232747003,5.0,155.48,155.44,7.96]
[1718232747201,5.0,155.48,155.44,8.13]
[1718232747583,5.0,155.48,155.43,0.17]
[1718232747878,5.0,155.48,155.45,7.96]
[1718232749486,5.0,155.48,155.46,7.96]
[1718232750788,12.96,155.48,155.42,7.96]
[1718232751209,5.0,155.48,155.42,7.96]
[1718232751392,5.0,155.48,155.43,7.96]
[1718232751591,12.96,155.48,155.42,7.96]
[1718232752209,7.96,155.47,155.41,7.96]
[1718232754817,5.0,155.48,155.41,7.96]
[1718232755015,7.96,155.47,155.41,7.96]
[1718232755794,12.96,155.48,155.42,7.96]
[1718232757621,5.0,155.48,155.43,7.96]
[1718232758906,5.0,155.48,155.45,7.96]
[1718232761711,5.0,155.48,155.43,7.96]
[1718232762125,5.0,155.48,155.44,0.34]
[1718232762330,5.0,155.48,155.44,8.3]
[1718232762634,5.0,155.48,155.43,7.96]
[1718232763601,5.0,155.48,155.42,0.68]
[1718232763602,12.96,155.48,155.42,0.51]
[1718232763825,7.96,155.47,155.42,8.3]
[1718232764841,7.96,155.47,155.38,58.28306772]
[1718232764842,15.7761,155.47,155.38,15.0862]
[1718232765011,7.96,155.45,155.39,7.96]
[1718232765822,7.96,155.45,155.38,15.0862]
[1718232766135,7.96,155.45,155.39,7.96]
[1718232767632,7.96,155.45,155.38,15.2562]
[1718232767832,7.96,155.45,155.39,8.13]
[1718232769633,7.96,155.46,155.4,7.96]
[1718232773220,15.7761,155.47,155.4,7.96]
[1718232773420,7.96,155.46,155.4,7.96]
[1718232777521,7.96,155.46,155.38,15.0862]
[1718232778638,7.96,155.44,155.39,7.96]
[1718232778962,7.96,155.45,155.39,7.96]
[1718232779143,7.96,155.45,155.4,7.96]
[1718232781342,15.7761,155.47,155.4,7.96]
[1718232781542,15.7761,155.47,155.35,49.3848819]
[1718232781543,7.96,155.45,155.35,49.3848819]
[1718232781755,7.96,155.45,155.39,7.96]
[1718232782120,7.96,155.46,155.4,7.96]
[1718232789451,15.7761,155.47,155.4,7.96]
[1718232789631,7.96,155.46,155.4,7.96]
[1718232790034,7.96,155.46,155.41,0.17]
[1718232793532,5.0,155.48,155.39,16.6773]
[1718232793854,7.96,155.47,155.42,7.96]
[1718232795330,12.96,155.48,155.42,7.96]
[1718232797464,5.0,155.48,155.42,7.96]
[1718232797768,12.96,155.48,155.42,7.96]
[1718232798171,5.0,155.48,155.42,7.96]
[1718232798469,12.96,155.48,155.42,7.96]
[1718232799249,7.96,155.47,155.42,7.96]
[1718232801747,12.96,155.48,155.42,7.96]
[1718232802337,12.96,155.48,155.39,16.3373]
[1718232802642,7.96,155.47,155.41,7.96]
[1718232802839,5.0,155.48,155.39,22.7763]
[1718232803055,12.96,155.48,155.42,7.96]
[1718232803346,12.96,155.48,155.39,16.3373]
[1718232803559,12.96,155.48,155.42,7.96]
[1718232805541,5.0,155.48,155.42,7.96]
[1718232805960,12.96,155.48,155.42,7.96]
[1718232806750,5.0,155.48,155.42,7.96]
[1718232808577,12.96,155.48,155.39,16.3373]
[1718232808746,12.96,155.48,155.42,7.96]
[1718232809356,5.0,155.48,155.43,7.96]
[1718232811383,5.0,155.48,155.44,7.96]
[1718232812253,5.0,155.48,155.43,0.17]
[1718232812254,5.0,155.48,155.45,7.96]
[1718232813446,5.0,155.48,155.43,0.17]
[1718232813447,5.0,155.48,155.46,7.96]
[1718232813646,5.0,155.48,155.47,8.47]
[1718232814045,5.0,155.48,155.47,8.64]
[1718232815477,10.0,155.62,155.48,21.6552]
[1718232815682,7.96,155.59,155.53,7.96]
[1718232815978,7.96,155.58,155.53,0.17]
[1718232816354,10.0,155.62,155.53,0.17]
[1718232816553,7.96,155.58,155.53,0.17]
[1718232816756,10.0,155.62,155.53,8.13]
[1718232816971,7.96,155.59,155.53,8.3]
[1718232817159,10.0,155.62,155.53,8.47]
[1718232817561,7.96,155.61,155.53,8.64]
[1718232817767,7.96,155.6,155.53,8.64]
[1718232818462,10.0,155.62,155.53,8.64]
[1718232818666,7.96,155.61,155.53,8.64]
[1718232819158,10.0,155.62,155.53,8.64]
[1718232819557,7.96,155.61,155.53,8.64]
[1718232819774,10.0,155.62,155.53,23.8342]
[1718232819973,10.0,155.62,155.53,50.1314]
[1718232820154,7.96,155.61,155.53,50.1314]
[1718232820776,10.0,155.62,155.53,50.1314]
[1718232820978,7.96,155.61,155.53,50.1314]
[1718232823660,10.0,155.62,155.53,56.5674]
[1718232823893,17.96,155.62,155.53,56.5674]
[1718232825074,7.96,155.61,155.53,50.1314]
[1718232825683,17.96,155.62,155.53,50.1314]
[1718232826687,7.96,155.61,155.53,20.68]
[1718232826874,7.96,155.6,155.52,43.15798165]
[1718232827080,7.96,155.59,155.53,7.96]
[1718232827989,7.96,155.59,155.53,8.13]
[1718232828168,10.0,155.62,155.53,8.64]
[1718232828368,7.96,155.6,155.53,8.64]
[1718232828584,7.96,155.6,155.52,43.15798165]
[1718232828770,7.96,155.6,155.53,7.96]
[1718232828973,7.96,155.59,155.53,7.96]
[1718232830089,7.96,155.59,155.53,8.64]
[1718232830889,10.0,155.62,155.53,8.64]
[1718232831261,7.96,155.61,155.53,8.64]
[1718232831589,10.0,155.62,155.54,0.17]
[1718232831769,17.96,155.62,155.56,7.96]
[1718232831974,7.96,155.61,155.57,0.51]
[1718232832377,10.0,155.62,155.57,0.51]
[1718232832696,17.96,155.62,155.56,0.17]
[1718232832875,17.96,155.62,155.56,0.51]
[1718232834183,10.0,155.62,155.56,0.51]
[1718232834391,17.96,155.62,155.56,0.51]
[1718232835387,17.96,155.62,155.53,20.0]
[1718232836096,10.0,155.62,155.53,20.0]
[1718232836273,9.49010574,155.62,155.53,20.0]
[1718232836475,17.45010574,155.62,155.53,26.436]
[1718232836692,17.45010574,155.62,155.54,0.68]
[1718232837275,9.49010574,155.62,155.57,7.96]
[1718232837588,9.49010574,155.62,155.58,0.34]
[1718232840774,17.45010574,155.62,155.58,0.34]
[1718232840982,17.45010574,155.62,155.57,0.34]
[1718232841177,17.45010574,155.62,155.58,0.34]
[1718232842592,7.96,155.61,155.53,63.15520675]
[1718232842793,17.45010574,155.62,155.56,7.96]
[1718232843586,17.45010574,155.62,155.53,63.15520675]
[1718232843587,7.96,155.6,155.51,43.1607569]
[1718232843792,9.49010574,155.62,155.53,7.96]
[1718232843793,7.96,155.59,155.53,7.96]
[1718232844996,7.96,155.59,155.54,0.68]
[1718232845896,9.49010574,155.62,155.54,0.68]
[1718232846104,7.96,155.59,155.54,0.68]
[1718232846785,9.49010574,155.62,155.51,43.1607569]
[1718232846993,7.96,155.59,155.53,7.96]
[1718232847490,7.96,155.6,155.54,7.96]
[1718232848399,7.96,155.6,155.55,7.96]
[1718232848582,9.49010574,155.62,155.56,0.34]
[1718232848790,7.96,155.6,155.56,0.34]
[1718232848991,7.96,155.61,155.56,0.34]
[1718232850086,9.49010574,155.62,155.57,0.17]
[1718232850304,17.45010574,155.62,155.57,8.3]
[1718232850488,17.45010574,155.62,155.58,0.34]
[1718232850815,9.49010574,155.62,155.58,0.34]
[1718232850988,17.45010574,155.62,155.58,0.34]
[1718232852507,9.49010574,155.62,155.59,0.34]
[1718232853387,7.96,155.61,155.55,7.96]
[1718232854501,7.96,155.61,155.56,0.17]
[1718232854693,7.96,155.61,155.56,0.68]
[1718232855905,16.4158,155.61,155.49,15.4029]
[1718232856213,31.84,155.6,155.49,15.4029]
[1718232856512,7.96,155.57,155.51,7.96]
[1718232856815,7.96,155.56,155.51,7.96]
[1718232857491,7.96,155.57,155.51,7.96]
[1718232857692,7.96,155.56,155.49,15.4029]
[1718232857900,7.96,155.56,155.5,7.96]
[1718232859296,31.84,155.6,155.5,7.96]
[1718232859503,16.4158,155.61,155.51,0.34]
[1718232859822,7.96,155.56,155.51,8.64]
[1718232860610,16.4158,155.61,155.52,7.96]
[1718232860802,7.96,155.58,155.52,7.96]
[1718232861002,7.96,155.57,155.51,8.64]
[1718232861391,16.4158,155.61,155.51,8.64]
[1718232861392,9.49010574,155.62,155.53,0.17]
[1718232861594,17.45010574,155.62,155.53,0.68]
[1718232861797,17.45010574,155.62,155.56,7.96]
[1718232862004,17.45010574,155.62,155.57,0.34]
[1718232862519,7.96,155.61,155.57,0.34]
[1718232862898,7.96,155.61,155.56,0.34]
[1718232863625,7.96,155.61,155.55,0.17]
[1718232863930,7.96,155.6,155.54,8.3]
[1718232867595,7.96,155.59,155.52,6.0434]
[1718232867801,7.96,155.58,155.53,8.3]
[1718232868017,7.96,155.58,155.53,0.34]
[1718232868201,7.96,155.58,155.53,8.3]
[1718232868706,7.96,155.59,155.54,0.17]
[1718232869050,7.96,155.59,155.54,0.34]
[1718232869229,7.96,155.59,155.55,0.17]
[1718232870020,9.49010574,155.62,155.55,0.17]
[1718232870197,7.96,155.59,155.55,0.17]
[1718232871702,7.96,155.59,155.55,0.34]
[1718232873415,9.49010574,155.62,155.55,0.34]
[1718232873613,7.96,155.59,155.55,0.34]
[1718232874632,9.49010574,155.62,155.55,0.34]
[1718232875325,7.96,155.6,155.55,0.34]
[1718232875512,9.49010574,155.62,155.55,0.34]
[1718232875718,7.96,155.6,155.55,8.3]
[1718232879827,7.96,155.6,155.55,0.34]
[1718232882150,7.96,155.6,155.56,0.17]
[1718232882321,7.96,155.61,155.56,0.34]
[1718232882649,7.96,155.58,155.52,6.0434]
[1718232883139,7.96,155.58,155.52,14.0034]
[1718232883339,9.49010574,155.62,155.54,7.96]
[1718232883545,7.96,155.6,155.54,7.96]
[1718232883922,7.96,155.6,155.55,0.34]
[1718232884117,7.96,155.6,155.55,0.51]
[1718232884628,7.96,155.59,155.54,0.17]
[1718232884830,9.49010574,155.62,155.53,8.3]
[1718232885040,7.96,155.59,155.54,0.51]
[1718232885244,7.96,155.59,155.52,6.0434]
[1718232885443,7.96,155.58,155.52,14.0034]
[1718232886538,7.96,155.58,155.53,0.34]
[1718232888443,7.96,155.59,155.54,0.17]
[1718232888643,7.96,155.59,155.54,0.34]
[1718232888835,7.96,155.59,155.55,0.17]
[1718232889037,7.96,155.59,155.54,0.34]
[1718232889226,7.96,155.59,155.54,0.17]
[1718232893235,9.49010574,155.62,155.54,0.17]
[1718232893447,7.96,155.6,155.54,8.13]
[1718232893749,7.96,155.6,155.54,7.96]
[1718232894155,7.96,155.59,155.53,25.117]
[1718232894349,7.96,155.59,155.54,8.13]
[1718232896043,9.49010574,155.62,155.55,0.51]
[1718232896259,7.96,155.6,155.55,0.51]
[1718232897060,7.96,155.6,155.56,0.17]
[1718232897654,7.96,155.59,155.53,24.607]
[1718232898033,7.96,155.59,155.54,7.96]
[1718232898234,7.96,155.59,155.53,24.607]
[1718232899036,9.49010574,155.62,155.53,24.607]
[1718232899236,7.96,155.6,155.54,8.47]
[1718232900643,9.49010574,155.62,155.55,0.17]
[1718232900837,7.96,155.61,155.55,0.17]
[1718232901151,7.96,155.6,155.55,0.17]
[1718232907566,7.96,155.61,155.55,0.17]
[1718232907740,7.96,155.6,155.55,0.17]
[1718232908652,7.96,155.59,155.53,24.607]
[1718232909956,7.96,155.59,155.54,0.51]
[1718232910961,7.96,155.6,155.54,8.47]
[1718232913177,9.49010574,155.62,155.54,8.47]
[1718232913481,7.96,155.6,155.54,8.47]
[1718232917585,7.96,155.59,155.53,16.647]
[1718232917986,7.96,155.58,155.53,16.647]
[1718232921288,7.96,155.57,155.53,16.647]
[1718232921492,7.96,155.58,155.53,16.647]
[1718232923178,7.96,155.58,155.53,24.607]
[1718232923582,7.96,155.58,155.53,16.647]
[1718232923764,7.96,155.57,155.53,16.647]
[1718232923969,7.96,155.58,155.53,16.647]
[1718232927385,7.96,155.57,155.53,16.647]
[1718232927587,15.256,155.6,155.48,28.39210141]
[1718232927794,15.256,155.6,155.48,21.1911]
[1718232927795,7.96,155.52,155.48,21.1911]
[1718232933081,7.96,155.53,155.48,21.1911]
[1718232938492,7.96,155.52,155.46,7.96]
[1718232938716,0.17,155.54,155.43,17.37404178]
[1718232938885,7.96,155.5,155.44,7.96]
[1718232940715,20.0,155.54,155.45,7.96]
[1718232940882,7.96,155.5,155.45,7.96]
[1718232941685,20.0,155.54,155.45,7.96]
[1718232942090,7.96,155.51,155.45,7.96]
[1718232944318,7.46,155.51,155.45,7.96]
[1718232946005,20.0,155.54,155.45,7.96]
[1718232946207,7.96,155.5,155.44,0.17]
[1718232946514,7.96,155.51,155.45,7.96]
[1718232947608,20.0,155.54,155.43,16.2561]
[1718232947817,7.96,155.49,155.43,24.2161]
[1718232948422,20.0,155.54,155.44,7.96]
[1718232948625,7.96,155.49,155.43,16.2561]
[1718232948806,7.96,155.49,155.43,24.2161]
[1718232950026,7.96,155.49,155.44,0.68]
[1718232951527,7.96,155.49,155.43,16.2561]
[1718232951730,7.96,155.49,155.43,24.2161]
[1718232951905,7.96,155.48,155.43,16.2561]
[1718232952108,0.17,155.52,155.42,6.0721]
[1718232952338,52.52,155.52,155.42,14.0321]
[1718232952637,7.96,155.48,155.42,14.0321]
[1718232952810,7.96,155.48,155.43,7.96]
[1718232953009,7.96,155.48,155.42,14.0321]
[1718232954043,52.52,155.52,155.42,14.0321]
[1718232954044,20.68,155.52,155.42,14.0321]
[1718232954216,7.96,155.48,155.43,7.96]
[1718232954413,7.96,155.48,155.42,6.0721]
[1718232954739,7.96,155.48,155.42,14.0321]
[1718232955110,20.0,155.52,155.43,15.7267]
[1718232955321,7.96,155.49,155.44,7.96]
[1718232956228,9.65036607,155.54,155.44,0.17]
[1718232956429,9.65036607,155.54,155.46,7.96]
[1718232956730,7.96,155.52,155.46,7.96]
[1718232957029,7.96,155.52,155.47,14.2719]
[1718232957238,7.96,155.52,155.47,6.3119]
[1718232957731,7.96,155.5,155.47,6.3119]
[1718232958336,53.04723486,155.6,155.47,6.3119]
[1718232958337,0.17,155.59,155.47,6.3119]
[1718232958507,7.96,155.52,155.47,6.3119]
[1718232959305,0.68,155.59,155.47,6.3119]
[1718232959523,7.96,155.51,155.47,6.3119]
[1718232961532,7.96,155.5,155.47,6.3119]
[1718232961718,7.96,155.5,155.44,7.96]
[1718232961926,7.96,155.47,155.43,22.0619]
[1718232962235,0.17,155.54,155.43,30.0219]
[1718232962439,7.96,155.49,155.43,30.0219]
[1718232962613,7.96,155.47,155.43,22.0619]
[1718232962812,7.96,155.48,155.43,22.0619]
[1718232963733,31.84,155.52,155.43,22.0619]
[1718232963734,7.96,155.46,155.43,22.0619]
[1718232963918,31.84,155.52,155.43,22.0619]
[1718232964138,7.96,155.47,155.43,22.0619]
[1718232964319,7.96,155.47,155.43,21.9484463]
[1718232964843,15.5049,155.56,155.44,7.96]
[1718232965016,15.5049,155.56,155.4,6.2109]
[1718232965017,7.96,155.45,155.4,6.2109]
[1718232965207,31.84,155.52,155.4,6.2109]
[1718232965418,275.1049,155.56,155.45,7.96]
[1718232965629,7.96,155.48,155.4,6.2109]
[1718232966139,7.96,155.47,155.42,7.96]
[1718232967320,7.96,155.47,155.42,23.6167]
[1718232969816,7.96,155.48,155.42,23.6167]
[1718232970024,7.96,155.48,155.43,7.96]
[1718232971664,7.96,155.49,155.43,0.17]
[1718232971834,7.96,155.49,155.43,8.64]
[1718232972536,7.96,155.49,155.43,0.17]
[1718232972740,7.96,155.49,155.42,15.6567]
[1718232972741,7.96,155.48,155.42,23.6167]
[1718232973134,7.96,155.47,155.42,15.6567]
[1718232973657,7.96,155.48,155.42,15.6567]
[1718232974253,17.61076861,155.48,155.42,23.6167]
[1718232974829,9.65076861,155.48,155.42,23.6167]
[1718232975039,7.96,155.47,155.42,23.6167]
[1718232975460,17.61076861,155.48,155.42,23.6167]
[1718232975644,9.65076861,155.48,155.43,7.96]
[1718232975843,17.61076861,155.49,155.43,7.96]
[1718232976148,7.96,155.48,155.43,7.96]
[1718232977566,7.96,155.48,155.42,15.6567]
[1718232977863,7.96,155.47,155.42,15.6567]
[1718232978862,7.96,155.46,155.42,15.6567]
[1718232979069,17.61076861,155.47,155.42,15.6567]
[1718232979447,9.65076861,155.47,155.42,15.6567]
[1718232979645,17.61076861,155.47,155.42,15.6567]
[1718232980969,7.96,155.47,155.42,15.6567]
[1718232981865,9.65076861,155.48,155.42,23.6167]
[1718232982376,7.96,155.47,155.42,23.6167]
[1718232982546,17.61076861,155.48,155.42,15.6567]
[1718232982875,9.65076861,155.47,155.45,7.96]
[1718232983047,9.65076861,155.47,155.44,7.96]
[1718232983247,9.65076861,155.49,155.44,7.96]
[1718232985464,9.65076861,155.48,155.44,7.96]
[1718232985870,9.65076861,155.48,155.42,15.6567]
[1718232986174,9.65076861,155.48,155.43,7.96]
[1718232986347,9.65076861,155.48,155.44,7.96]
[1718232990054,9.65076861,155.48,155.43,7.96]
[1718232990269,9.65076861,155.47,155.43,7.96]
[1718232990783,9.65076861,155.47,155.42,23.6167]
[1718232991470,9.65076861,155.46,155.42,15.6567]
[1718232991789,9.65076861,155.46,155.42,23.6167]
[1718232992574,9.65076861,155.46,155.4,6.2109]
[1718232992761,9.65076861,155.45,155.42,7.96]
[1718232993286,9.65076861,155.46,155.42,7.96]
[1718232995181,9.65222085,155.46,155.42,7.96]
[1718232996795,9.65212319,155.46,155.42,7.96]
[1718232998171,9.65212319,155.47,155.42,7.96]
[1718232998682,9.65212319,155.47,155.4,6.2109]
[1718232998885,9.65212319,155.47,155.43,7.96]
[1718232999072,9.65212319,155.47,155.45,7.96]
[1718232999270,9.65212319,155.49,155.45,7.96]
[1718233000787,9.65212319,155.48,155.45,7.96]
[1718233001568,9.65212319,155.49,155.45,7.96]
[1718233002380,9.65212319,155.48,155.45,7.96]
[1718233004215,9.65212319,155.49,155.44,7.96]
[1718233004989,9.65212319,155.49,155.45,7.96]
[1718233007170,9.65029683,155.49,155.45,7.96]
[1718233008173,9.65029683,155.49,155.46,7.96]
[1718233008876,9.65029683,155.5,155.46,7.96]
[1718233010276,9.65029683,155.51,155.46,7.96]
[1718233012175,9.6494616,155.51,155.46,7.96]
[1718233014003,9.64948044,155.51,155.46,7.96]
[1718233014386,9.64948044,155.51,155.45,6.6512]
[1718233014693,17.60948044,155.51,155.45,14.6112]
[1718233014882,9.64948044,155.5,155.45,7.96]
[1718233015085,9.64948044,155.5,155.43,15.5788]
[1718233015086,7.96,155.49,155.43,15.5788]
[1718233015394,9.65096011,155.49,155.44,7.96]
[1718233015604,17.61096011,155.49,155.44,7.96]
[1718233016189,17.61096011,155.5,155.45,7.96]
[1718233016683,9.65096011,155.5,155.45,7.96]
[1718233017409,9.65096011,155.5,155.46,6.1053]
[1718233017603,7.96,155.53,155.47,7.96]
[1718233020517,7.96,155.52,155.47,7.96]
[1718233021809,7.96,155.52,155.46,6.1053]
[1718233021982,7.96,155.51,155.46,6.1053]
[1718233022295,7.96,155.5,155.46,6.1053]
[1718233025114,7.96,155.51,155.46,6.1053]
[1718233027103,7.96,155.51,155.46,14.0653]
[1718233027302,7.96,155.52,155.46,14.0653]
[1718233028128,7.96,155.52,155.47,7.96]
[1718233029499,7.96,155.49,155.43,15.5788]
[1718233029805,7.96,155.49,155.44,20.0]
[1718233035331,7.96,155.49,155.44,27.96]
[1718233037832,7.96,155.5,155.44,27.96]
[1718233039312,9.65036501,155.49,155.44,27.96]
[1718233040338,9.65036501,155.48,155.44,27.96]
[1718233042839,9.65036501,155.48,155.44,7.96]
[1718233044841,7.96,155.5,155.44,7.96]
[1718233045340,7.96,155.5,155.43,15.5788]
[1718233045513,7.96,155.49,155.43,23.5388]
[1718233046113,7.96,155.49,155.43,15.5788]
[1718233046445,7.96,155.47,155.43,15.5788]
[1718233049354,9.65189172,155.46,155.43,15.5788]
[1718233050424,9.65189172,155.47,155.43,15.5788]
[1718233050830,9.65189172,155.46,155.43,15.5788]
[1718233051842,9.65175041,155.46,155.43,15.5788]
[1718233052351,9.65175041,155.47,155.43,15.5788]
[1718233053329,9.65175041,155.46,155.43,15.5788]
[1718233054252,9.65175041,155.47,155.43,15.5788]
[1718233054629,9.65175041,155.46,155.43,15.5788]
[1718233054951,9.65175041,155.47,155.43,15.5788]
[1718233055855,9.65149445,155.47,155.43,15.5788]
[1718233058770,9.65149445,155.46,155.43,15.5788]
[1718233059271,9.65149445,155.47,155.43,15.5788]
[1718233070378,31.84,155.52,155.43,15.5788]
[1718233070379,17.61149445,155.48,155.43,15.5788]
[1718233070750,17.61112121,155.48,155.43,15.5788]
[1718233071871,17.61112121,155.48,155.42,6.496]
[1718233072064,9.65112121,155.47,155.42,14.456]
[1718233074184,9.65112121,155.47,155.42,6.496]
[1718233074364,17.61112121,155.47,155.42,6.496]
[1718233074675,17.61160413,155.47,155.42,6.496]
[1718233075060,9.65160413,155.46,155.42,6.496]
[1718233080368,9.65160413,155.45,155.42,6.496]
[1718233081282,9.65160413,155.45,155.4,15.7743]
[1718233081500,9.65160413,155.46,155.38,14.3108]
[1718233081800,9.65160413,155.45,155.44,7.96]
[1718233082295,9.65160413,155.47,155.43,6.3508]
[1718233082462,9.65160413,155.47,155.43,14.3108]
[1718233082664,9.65160413,155.47,155.43,6.3508]
[1718233083284,9.65160413,155.46,155.44,30.0]
[1718233083813,9.65171278,155.46,155.44,30.0]
[1718233084186,9.65171278,155.46,155.43,6.3508]
[1718233087212,9.65157848,155.45,155.43,6.3508]
[1718233087417,9.65157848,155.45,155.38,8.58994717]
[1718233087696,9.65157848,155.44,155.4,30.0]
[1718233088001,9.65157848,155.43,155.4,30.0]
[1718233088179,9.65157848,155.44,155.4,30.0]
[1718233088381,9.65157848,155.43,155.4,30.0]
[1718233088898,9.65309961,155.43,155.4,30.0]
[1718233089203,9.65309961,155.44,155.4,30.0]
[1718233089509,9.65309961,155.44,155.4,37.96]
[1718233092787,9.65309961,155.44,155.43,7.96]
[1718233092988,9.65309961,155.45,155.43,52.96]
[1718233093203,9.65309961,155.46,155.43,52.96]
[1718233095103,9.65309961,155.46,155.44,45.0]
[1718233097605,9.65309961,155.46,155.43,7.96]
[1718233097904,9.65309961,155.46,155.42,7.96]
[1718233098115,9.65309961,155.46,155.43,45.0]
[1718233099414,9.6517519,155.46,155.43,45.0]
[1718233101821,9.6517519,155.45,155.43,45.0]
[1718233104210,9.6517519,155.46,155.43,45.0]
[1718233106509,9.6517519,155.46,155.39,0.34]
[1718233106818,9.6517519,155.45,155.42,7.96]
[1718233109722,9.6517519,155.46,155.42,7.96]
[1718233110222,9.6517519,155.45,155.42,7.96]
[1718233112315,9.6517519,155.46,155.42,7.96]
[1718233113520,9.6517519,155.45,155.42,7.96]